[Event "Titled Tuesday Blitz May 23 Early 2023"]
[White "Kriti Mayur Patel"]
[Black "zsizsi99"]
[WhiteFideId "35061780"]
[WhiteElo "1306"]
[BlackElo "2348"]
[Result "0-1"]
[Round "07"]
[TimeControl "180+2"]
[Date "2023.05.23"]
[WhiteClock "0:01:00"]
[BlackClock "0:00:14"]

1. e4 {[%clk 0:03:00]}  c5 {[%clk 0:02:57]} 2. d4 {[%clk 0:02:59]}  cxd4 {[%clk 0:02:57]} 3. c3 {[%clk 0:02:59]}  Nf6 {[%clk 0:02:57]} 4. e5 {[%clk 0:02:59]}  Nd5 {[%clk 0:02:58]} 5. Bc4 {[%clk 0:02:59]}  Nb6 {[%clk 0:02:52]} 6. Bb3 {[%clk 0:02:59]}  dxc3 {[%clk 0:02:50]} 7. Nxc3 {[%clk 0:02:59]}  Nc6 {[%clk 0:02:48]} 8. Nf3 {[%clk 0:02:59]}  d6 {[%clk 0:02:49]} 9. exd6 {[%clk 0:02:58]}  Qxd6 {[%clk 0:02:45]} 10. Qxd6 {[%clk 0:02:57]}  exd6 {[%clk 0:02:45]} 11. Nb5 {[%clk 0:02:58]}  Kd7 {[%clk 0:02:37]} 12. Bxf7 {[%clk 0:02:55]}  a6 {[%clk 0:02:37]} 13. Nbd4 {[%clk 0:02:53]}  Be7 {[%clk 0:02:35]} 14. O-O {[%clk 0:02:49]}  Bf6 {[%clk 0:02:28]} 15. Nf5 {[%clk 0:02:43]}  Rf8 {[%clk 0:02:22]} 16. Bb3 {[%clk 0:02:41]}  Kc7 {[%clk 0:02:20]} 17. Ne3 {[%clk 0:02:38]}  Bd7 {[%clk 0:01:56]} 18. Rd1 {[%clk 0:02:36]}  Na5 {[%clk 0:01:40]} 19. Nd5+ {[%clk 0:02:29]}  Nxd5 {[%clk 0:01:39]} 20. Bxd5 {[%clk 0:02:30]}  Bc6 {[%clk 0:01:38]} 21. h3 {[%clk 0:02:26]}  Bxd5 {[%clk 0:01:19]} 22. Rxd5 {[%clk 0:02:25]}  Nc4 {[%clk 0:01:20]} 23. Bf4 {[%clk 0:02:21]}  Bxb2 {[%clk 0:01:14]} 24. Rad1 {[%clk 0:02:18]}  Rad8 {[%clk 0:01:11]} 25. Ng5 {[%clk 0:02:16]}  Rf6 {[%clk 0:01:05]} 26. Bc1 {[%clk 0:01:53]}  h6 {[%clk 0:00:20]} 27. Ne4 {[%clk 0:01:50]}  Re6 {[%clk 0:00:20]} 28. Nc5 {[%clk 0:01:41]}  Rg6 {[%clk 0:00:15]} 29. Ne4 {[%clk 0:01:36]}  Bxc1 {[%clk 0:00:14]} 30. Rxc1 {[%clk 0:01:37]}  b5 {[%clk 0:00:14]} 31. Nd2 {[%clk 0:01:37]}  Kc6 {[%clk 0:00:15]} 32. Rd3 {[%clk 0:01:31]}  d5 {[%clk 0:00:15]} 33. Nf3 {[%clk 0:01:28]}  Re6 {[%clk 0:00:16]} 34. Nd4+ {[%clk 0:01:27]}  Kd6 {[%clk 0:00:16]} 35. Nxe6 {[%clk 0:01:28]}  Kxe6 {[%clk 0:00:17]} 36. Rg3 {[%clk 0:01:28]}  g5 {[%clk 0:00:16]} 37. Re1+ {[%clk 0:01:28]}  Kf5 {[%clk 0:00:16]} 38. Rd3 {[%clk 0:01:29]}  d4 {[%clk 0:00:16]} 39. g3 {[%clk 0:01:25]}  Ne5 {[%clk 0:00:15]} 40. Rb3 {[%clk 0:01:19]}  d3 {[%clk 0:00:15]} 41. Rd1 {[%clk 0:01:19]}  Ke4 {[%clk 0:00:14]} 42. Rb4+ {[%clk 0:01:17]}  Kf3 {[%clk 0:00:11]} 43. Kf1 {[%clk 0:01:17]}  Nc4 {[%clk 0:00:10]} 44. Rb3 {[%clk 0:01:15]}  Ke4 {[%clk 0:00:09]} 45. f3+ {[%clk 0:01:14]}  Ke3 {[%clk 0:00:09]} 46. f4 {[%clk 0:01:11]}  gxf4 {[%clk 0:00:06]} 47. Kg2 {[%clk 0:01:10]}  f3+ {[%clk 0:00:05]} 48. Kf1 {[%clk 0:01:10]}  Nd2+ {[%clk 0:00:06]} 49. Rxd2 {[%clk 0:01:06]}  Kxd2 {[%clk 0:00:06]} 50. Kf2 {[%clk 0:01:06]}  Kc2 {[%clk 0:00:07]} 51. Rxd3 {[%clk 0:00:54]}  Rxd3 {[%clk 0:00:06]} 52. g4 {[%clk 0:00:54]}  Ra3 {[%clk 0:00:06]} 53. Kg3 {[%clk 0:00:54]}  Rxa2 {[%clk 0:00:07]} 54. Kxf3 {[%clk 0:00:55]}  Kd3 {[%clk 0:00:07]} 55. Kf4 {[%clk 0:00:56]}  Rh2 {[%clk 0:00:07]} 56. Kf5 {[%clk 0:00:56]}  Rxh3 {[%clk 0:00:08]} 57. Kg6 {[%clk 0:00:57]}  a5 {[%clk 0:00:08]} 58. g5 {[%clk 0:00:55]}  a4 {[%clk 0:00:09]} 59. gxh6 {[%clk 0:00:55]}  a3 {[%clk 0:00:09]} 60. h7 {[%clk 0:00:56]}  Rxh7 {[%clk 0:00:09]} 61. Kxh7 {[%clk 0:00:56]}  a2 {[%clk 0:00:10]} 62. Kg7 {[%clk 0:00:57]}  a1=Q+ {[%clk 0:00:11]} 63. Kg8 {[%clk 0:00:58]}  Qf6 {[%clk 0:00:11]} 64. Kh7 {[%clk 0:00:57]}  Qg5 {[%clk 0:00:11]} 65. Kh8 {[%clk 0:00:57]}  Ke4 {[%clk 0:00:12]} 66. Kh7 {[%clk 0:00:58]}  Kf5 {[%clk 0:00:13]} 67. Kh8 {[%clk 0:00:59]}  Kf6 {[%clk 0:00:13]} 68. Kh7 {[%clk 0:01:00]}  Qg7# {[%clk 0:00:14]} 0-1


[Site "https://www.chess.com"]

[Event "Titled Tuesday Blitz May 23 Early 2023"]
[White "Osinovsky, Stepan"]
[Black "Butolo, Alexandru-Mircea"]
[WhiteFideId "4157354"]
[BlackFideId "1261649"]
[WhiteElo "2222"]
[BlackElo "1850"]
[Result "1-0"]
[Round "07"]
[TimeControl "180+2"]
[Date "2023.05.23"]
[WhiteClock "0:00:35"]
[BlackClock "0:00:56"]

1. Nf3 {[%clk 0:02:55]}  Nf6 {[%clk 0:02:58]} 2. g3 {[%clk 0:02:56]}  b5 {[%clk 0:02:55]} 3. Bg2 {[%clk 0:02:57]}  Bb7 {[%clk 0:02:54]} 4. O-O {[%clk 0:02:58]}  e6 {[%clk 0:02:54]} 5. d3 {[%clk 0:02:57]}  Be7 {[%clk 0:02:54]} 6. e4 {[%clk 0:02:57]}  O-O {[%clk 0:02:54]} 7. Re1 {[%clk 0:02:57]}  d6 {[%clk 0:02:51]} 8. a4 {[%clk 0:02:43]}  b4 {[%clk 0:02:49]} 9. Nbd2 {[%clk 0:02:41]}  c5 {[%clk 0:02:47]} 10. Nc4 {[%clk 0:02:31]}  Nbd7 {[%clk 0:02:45]} 11. a5 {[%clk 0:02:07]}  Re8 {[%clk 0:02:25]} 12. a6 {[%clk 0:02:05]}  Bc6 {[%clk 0:02:22]} 13. Na5 {[%clk 0:01:56]}  Bb5 {[%clk 0:02:15]} 14. e5 {[%clk 0:01:56]}  Nd5 {[%clk 0:02:14]} 15. exd6 {[%clk 0:01:05]}  Bxd6 {[%clk 0:02:13]} 16. Nb7 {[%clk 0:00:58]}  Qc7 {[%clk 0:02:13]} 17. Ng5 {[%clk 0:00:57]}  N7b6 {[%clk 0:01:59]} 18. Qh5 {[%clk 0:00:50]}  h6 {[%clk 0:01:49]} 19. Nxf7 {[%clk 0:00:36]}  Nf6 {[%clk 0:01:08]} 20. Nxh6+ {[%clk 0:00:35]}  gxh6 {[%clk 0:01:07]} 21. Qg6+ {[%clk 0:00:35]}  Qg7 {[%clk 0:00:59]} 22. Qxg7+ {[%clk 0:00:35]}  Kxg7 {[%clk 0:00:56]} 23. Nxd6 {[%clk 0:00:35]} 1-0


[Site "https://www.chess.com"]

[Event "Titled Tuesday Blitz May 23 Early 2023"]
[White "Dwilewicz, Katarzyna"]
[Black "Nithyalakshmi, Sivanesan"]
[WhiteFideId "1148486"]
[BlackFideId "5706955"]
[WhiteElo "2065"]
[BlackElo "1815"]
[Result "1-0"]
[Round "07"]
[TimeControl "180+2"]
[Date "2023.05.23"]
[WhiteClock "0:00:35"]
[BlackClock "0:00:03"]

1. e4 {[%clk 0:03:00]}  e6 {[%clk 0:02:57]} 2. Nf3 {[%clk 0:02:57]}  d5 {[%clk 0:02:47]} 3. Nc3 {[%clk 0:02:57]}  d4 {[%clk 0:02:36]} 4. Ne2 {[%clk 0:02:56]}  c5 {[%clk 0:02:37]} 5. d3 {[%clk 0:02:51]}  Nc6 {[%clk 0:02:37]} 6. Ng3 {[%clk 0:02:44]}  Nf6 {[%clk 0:02:36]} 7. Be2 {[%clk 0:02:45]}  Bd6 {[%clk 0:02:31]} 8. O-O {[%clk 0:02:45]}  Bxg3 {[%clk 0:02:31]} 9. hxg3 {[%clk 0:02:40]}  e5 {[%clk 0:02:30]} 10. c3 {[%clk 0:02:37]}  Be6 {[%clk 0:02:17]} 11. cxd4 {[%clk 0:02:36]}  cxd4 {[%clk 0:02:16]} 12. Bd2 {[%clk 0:02:28]}  Qd7 {[%clk 0:02:12]} 13. b4 {[%clk 0:02:27]}  Ng4 {[%clk 0:01:46]} 14. b5 {[%clk 0:02:22]}  Nd8 {[%clk 0:01:45]} 15. a4 {[%clk 0:02:11]}  O-O {[%clk 0:01:42]} 16. Ng5 {[%clk 0:02:02]}  Nf6 {[%clk 0:01:41]} 17. f4 {[%clk 0:01:53]}  exf4 {[%clk 0:01:21]} 18. gxf4 {[%clk 0:01:52]}  Bg4 {[%clk 0:01:21]} 19. Bxg4 {[%clk 0:01:33]}  Nxg4 {[%clk 0:01:17]} 20. Qf3 {[%clk 0:01:33]}  h6 {[%clk 0:01:12]} 21. Nh3 {[%clk 0:01:28]}  Nf6 {[%clk 0:01:10]} 22. f5 {[%clk 0:01:24]}  Re8 {[%clk 0:01:02]} 23. Kh1 {[%clk 0:01:18]}  Rc8 {[%clk 0:01:01]} 24. Rac1 {[%clk 0:01:16]}  b6 {[%clk 0:00:59]} 25. g4 {[%clk 0:01:15]}  Rxc1 {[%clk 0:00:36]} 26. Bxc1 {[%clk 0:01:15]}  Nb7 {[%clk 0:00:36]} 27. g5 {[%clk 0:01:12]}  hxg5 {[%clk 0:00:33]} 28. Bxg5 {[%clk 0:01:05]}  Qd6 {[%clk 0:00:32]} 29. Bf4 {[%clk 0:01:02]}  Qd7 {[%clk 0:00:23]} 30. Rg1 {[%clk 0:00:59]}  Re7 {[%clk 0:00:18]} 31. e5 {[%clk 0:00:50]}  Nd5 {[%clk 0:00:16]} 32. f6 {[%clk 0:00:49]}  Nxf4 {[%clk 0:00:10]} 33. Nxf4 {[%clk 0:00:48]}  Rxe5 {[%clk 0:00:09]} 34. Rxg7+ {[%clk 0:00:44]}  Kf8 {[%clk 0:00:10]} 35. Rh7 {[%clk 0:00:39]}  Re1+ {[%clk 0:00:05]} 36. Kg2 {[%clk 0:00:39]}  Kg8 {[%clk 0:00:02]} 37. Qg3+ {[%clk 0:00:35]}  Kxh7 {[%clk 0:00:03]} 38. Qg7# {[%clk 0:00:35]} 1-0


[Site "https://www.chess.com"]

[Event "Titled Tuesday Blitz May 23 Early 2023"]
[White "Vargas Rodriguez, Wilver"]
[Black "Peiris, T G M"]
[WhiteFideId "3509672"]
[BlackFideId "9901310"]
[WhiteElo "2246"]
[BlackElo "2022"]
[Result "1-0"]
[Round "07"]
[TimeControl "180+2"]
[Date "2023.05.23"]
[WhiteClock "0:00:11"]
[BlackClock "0:00:00"]

1. Nf3 {[%clk 0:03:00]}  Nf6 {[%clk 0:02:58]} 2. d4 {[%clk 0:02:56]}  e6 {[%clk 0:02:58]} 3. Bf4 {[%clk 0:02:53]}  d5 {[%clk 0:02:51]} 4. e3 {[%clk 0:02:52]}  Bd6 {[%clk 0:02:46]} 5. Bg3 {[%clk 0:02:47]}  O-O {[%clk 0:02:46]} 6. Bd3 {[%clk 0:02:45]}  b6 {[%clk 0:02:44]} 7. Nbd2 {[%clk 0:02:44]}  Bb7 {[%clk 0:02:44]} 8. Ne5 {[%clk 0:02:24]}  c5 {[%clk 0:02:40]} 9. c3 {[%clk 0:02:23]}  Nc6 {[%clk 0:02:39]} 10. f4 {[%clk 0:02:14]}  Ne7 {[%clk 0:02:37]} 11. Bh4 {[%clk 0:02:05]}  Ne4 {[%clk 0:02:14]} 12. Bxe4 {[%clk 0:01:33]}  dxe4 {[%clk 0:02:12]} 13. Qg4 {[%clk 0:01:33]}  cxd4 {[%clk 0:01:53]} 14. cxd4 {[%clk 0:01:04]}  f5 {[%clk 0:01:34]} 15. Qe2 {[%clk 0:00:40]}  Qc7 {[%clk 0:01:23]} 16. Bxe7 {[%clk 0:00:32]}  Qxe7 {[%clk 0:01:19]} 17. O-O {[%clk 0:00:30]}  a5 {[%clk 0:01:14]} 18. Rfc1 {[%clk 0:00:23]}  Bxe5 {[%clk 0:01:03]} 19. dxe5 {[%clk 0:00:22]}  Ba6 {[%clk 0:01:01]} 20. Qf2 {[%clk 0:00:12]}  Rac8 {[%clk 0:00:53]} 21. Nb3 {[%clk 0:00:11]}  Bd3 {[%clk 0:00:50]} 22. Nd4 {[%clk 0:00:11]}  Bc4 {[%clk 0:00:22]} 23. Rc3 {[%clk 0:00:09]}  Bd5 {[%clk 0:00:17]} 24. Qd2 {[%clk 0:00:08]}  Rxc3 {[%clk 0:00:16]} 25. Qxc3 {[%clk 0:00:09]}  Qd7 {[%clk 0:00:14]} 26. Rc1 {[%clk 0:00:08]}  a4 {[%clk 0:00:10]} 27. b3 {[%clk 0:00:08]}  axb3 {[%clk 0:00:10]} 28. axb3 {[%clk 0:00:08]}  Ra8 {[%clk 0:00:10]} 29. Qb4 {[%clk 0:00:06]}  Rb8 {[%clk 0:00:07]} 30. Rc3 {[%clk 0:00:06]}  h6 {[%clk 0:00:06]} 31. Qa3 {[%clk 0:00:05]}  Rc8 {[%clk 0:00:06]} 32. Qc1 {[%clk 0:00:05]}  Rxc3 {[%clk 0:00:06]} 33. Qxc3 {[%clk 0:00:05]}  b5 {[%clk 0:00:04]} 34. Qb4 {[%clk 0:00:05]}  Qb7 {[%clk 0:00:04]} 35. Qxb5 {[%clk 0:00:04]}  Qxb5 {[%clk 0:00:04]} 36. Nxb5 {[%clk 0:00:05]}  Bxb3 {[%clk 0:00:04]} 37. Nd4 {[%clk 0:00:05]}  Bd5 {[%clk 0:00:03]} 38. Kf2 {[%clk 0:00:06]}  Kf7 {[%clk 0:00:04]} 39. h3 {[%clk 0:00:07]}  Ke7 {[%clk 0:00:04]} 40. g4 {[%clk 0:00:07]}  g6 {[%clk 0:00:03]} 41. Kg3 {[%clk 0:00:07]}  Kf7 {[%clk 0:00:02]} 42. gxf5 {[%clk 0:00:06]}  gxf5 {[%clk 0:00:02]} 43. Kh4 {[%clk 0:00:07]}  Kg6 {[%clk 0:00:03]} 44. Nb5 {[%clk 0:00:07]}  Kf7 {[%clk 0:00:02]} 45. Nd6+ {[%clk 0:00:07]}  Ke7 {[%clk 0:00:02]} 46. Kh5 {[%clk 0:00:08]}  Kd7 {[%clk 0:00:01]} 47. Kxh6 {[%clk 0:00:08]}  Kc6 {[%clk 0:00:02]} 48. Kg7 {[%clk 0:00:07]}  Kc5 {[%clk 0:00:01]} 49. h4 {[%clk 0:00:07]}  Kb4 {[%clk 0:00:02]} 50. h5 {[%clk 0:00:08]}  Kc3 {[%clk 0:00:02]} 51. h6 {[%clk 0:00:09]}  Kd3 {[%clk 0:00:01]} 52. h7 {[%clk 0:00:10]}  Kxe3 {[%clk 0:00:00]} 53. h8=Q {[%clk 0:00:11]} 1-0


[Site "https://www.chess.com"]

[Event "Titled Tuesday Blitz May 23 Early 2023"]
[White "De Souza, Cristiano Gomes"]
[Black "Singgih, Diajeng Theresa"]
[WhiteFideId "2151758"]
[BlackFideId "7104391"]
[WhiteElo "2068"]
[BlackElo "1891"]
[Result "1-0"]
[Round "07"]
[TimeControl "180+2"]
[Date "2023.05.23"]
[WhiteClock "0:01:56"]
[BlackClock "0:01:21"]

1. d4 {[%clk 0:03:00]}  d5 {[%clk 0:03:00]} 2. c4 {[%clk 0:03:01]}  e6 {[%clk 0:03:00]} 3. Nf3 {[%clk 0:03:02]}  Nf6 {[%clk 0:03:00]} 4. Nc3 {[%clk 0:02:59]}  Be7 {[%clk 0:03:00]} 5. Bg5 {[%clk 0:02:57]}  O-O {[%clk 0:03:00]} 6. e3 {[%clk 0:02:57]}  b6 {[%clk 0:03:01]} 7. Rc1 {[%clk 0:02:57]}  Bb7 {[%clk 0:02:58]} 8. Bxf6 {[%clk 0:02:57]}  Bxf6 {[%clk 0:02:58]} 9. cxd5 {[%clk 0:02:58]}  exd5 {[%clk 0:02:58]} 10. b4 {[%clk 0:02:59]}  a6 {[%clk 0:02:44]} 11. Be2 {[%clk 0:02:58]}  Nd7 {[%clk 0:02:45]} 12. O-O {[%clk 0:02:58]}  c5 {[%clk 0:02:45]} 13. bxc5 {[%clk 0:02:58]}  bxc5 {[%clk 0:02:45]} 14. Rb1 {[%clk 0:02:58]}  Rb8 {[%clk 0:02:45]} 15. Qa4 {[%clk 0:02:57]}  cxd4 {[%clk 0:02:28]} 16. Nxd4 {[%clk 0:02:54]}  Nc5 {[%clk 0:02:27]} 17. Qa3 {[%clk 0:02:53]}  Ne6 {[%clk 0:02:24]} 18. Nxe6 {[%clk 0:02:40]}  fxe6 {[%clk 0:02:24]} 19. Na4 {[%clk 0:02:37]}  Be7 {[%clk 0:02:18]} 20. Nc5 {[%clk 0:02:16]}  Qd6 {[%clk 0:02:00]} 21. Rfc1 {[%clk 0:02:12]}  Bc6 {[%clk 0:01:55]} 22. Rxb8 {[%clk 0:02:04]}  Rxb8 {[%clk 0:01:55]} 23. Qxa6 {[%clk 0:02:02]}  Qxc5 {[%clk 0:01:40]} 24. Rxc5 {[%clk 0:02:01]}  Rb1+ {[%clk 0:01:36]} 25. Bf1 {[%clk 0:01:58]}  Bxc5 {[%clk 0:01:21]} 26. Qxc6 {[%clk 0:01:56]} 1-0


[Site "https://www.chess.com"]

[Event "Titled Tuesday Blitz May 23 Early 2023"]
[White "Castillo Pena, Patricia Evarista"]
[Black "lluiss"]
[WhiteFideId "6412106"]
[WhiteElo "1919"]
[BlackElo "2251"]
[Result "0-1"]
[Round "07"]
[TimeControl "180+2"]
[Date "2023.05.23"]
[WhiteClock "0:01:00"]
[BlackClock "0:01:21"]

1. d4 {[%clk 0:02:59]}  Nf6 {[%clk 0:02:57]} 2. Nf3 {[%clk 0:02:59]}  g6 {[%clk 0:02:57]} 3. Nc3 {[%clk 0:02:59]}  d5 {[%clk 0:02:56]} 4. Bf4 {[%clk 0:02:58]}  Bg7 {[%clk 0:02:56]} 5. e3 {[%clk 0:02:58]}  O-O {[%clk 0:02:56]} 6. Be2 {[%clk 0:02:58]}  c5 {[%clk 0:02:56]} 7. Ne5 {[%clk 0:02:57]}  Nc6 {[%clk 0:02:38]} 8. a3 {[%clk 0:02:56]}  cxd4 {[%clk 0:02:26]} 9. exd4 {[%clk 0:02:57]}  Qb6 {[%clk 0:02:25]} 10. Nxc6 {[%clk 0:02:56]}  Qxc6 {[%clk 0:02:15]} 11. O-O {[%clk 0:02:55]}  a6 {[%clk 0:02:15]} 12. Na4 {[%clk 0:02:46]}  b6 {[%clk 0:02:08]} 13. c4 {[%clk 0:02:19]}  Bd7 {[%clk 0:01:49]} 14. Nc3 {[%clk 0:02:14]}  Rac8 {[%clk 0:01:40]} 15. Rc1 {[%clk 0:02:13]}  dxc4 {[%clk 0:01:34]} 16. d5 {[%clk 0:01:58]}  Qb7 {[%clk 0:01:28]} 17. d6 {[%clk 0:01:52]}  exd6 {[%clk 0:01:23]} 18. Bxd6 {[%clk 0:01:51]}  Rfd8 {[%clk 0:01:22]} 19. Bf3 {[%clk 0:01:00]}  Bc6 {[%clk 0:01:21]} 0-1


[Site "https://www.chess.com"]

[Event "Titled Tuesday Blitz May 23 Early 2023"]
[White "Silva Rosas, Natalia"]
[Black "Sokolov, Andrei"]
[WhiteFideId "3000575"]
[BlackFideId "11600306"]
[WhiteElo "1651"]
[BlackElo "2473"]
[Result "0-1"]
[Round "07"]
[TimeControl "180+2"]
[Date "2023.05.23"]
[WhiteClock "0:00:05"]
[BlackClock "0:00:11"]

1. e4 {[%clk 0:03:00]}  c6 {[%clk 0:01:46]} 2. d3 {[%clk 0:02:52]}  d5 {[%clk 0:01:46]} 3. Nd2 {[%clk 0:02:52]}  dxe4 {[%clk 0:01:43]} 4. dxe4 {[%clk 0:02:52]}  Nf6 {[%clk 0:01:39]} 5. Ngf3 {[%clk 0:02:52]}  Bg4 {[%clk 0:01:38]} 6. h3 {[%clk 0:02:51]}  Bh5 {[%clk 0:01:37]} 7. g3 {[%clk 0:02:48]}  Nbd7 {[%clk 0:01:36]} 8. Bg2 {[%clk 0:02:48]}  e6 {[%clk 0:01:36]} 9. O-O {[%clk 0:02:47]}  Bc5 {[%clk 0:01:35]} 10. Re1 {[%clk 0:02:37]}  O-O {[%clk 0:01:31]} 11. c3 {[%clk 0:02:29]}  Qb6 {[%clk 0:01:29]} 12. Qe2 {[%clk 0:02:24]}  Ne5 {[%clk 0:01:17]} 13. b4 {[%clk 0:02:13]}  Nxf3+ {[%clk 0:01:13]} 14. Nxf3 {[%clk 0:02:11]}  Bxf3 {[%clk 0:01:04]} 15. Qxf3 {[%clk 0:02:08]}  Be7 {[%clk 0:01:00]} 16. e5 {[%clk 0:02:03]}  Nd5 {[%clk 0:00:58]} 17. Bd2 {[%clk 0:01:58]}  c5 {[%clk 0:00:55]} 18. a3 {[%clk 0:01:56]}  cxb4 {[%clk 0:00:49]} 19. cxb4 {[%clk 0:01:56]}  Rac8 {[%clk 0:00:48]} 20. Rac1 {[%clk 0:01:53]}  Qa6 {[%clk 0:00:41]} 21. Bf1 {[%clk 0:01:40]}  Qb6 {[%clk 0:00:37]} 22. Be3 {[%clk 0:01:27]}  Nxe3 {[%clk 0:00:37]} 23. Rxc8 {[%clk 0:01:24]}  Rxc8 {[%clk 0:00:35]} 24. Qxe3 {[%clk 0:01:21]}  Qxe3 {[%clk 0:00:33]} 25. fxe3 {[%clk 0:01:20]}  Rc3 {[%clk 0:00:33]} 26. Kf2 {[%clk 0:01:12]}  Rxa3 {[%clk 0:00:26]} 27. Rc1 {[%clk 0:01:13]}  Bxb4 {[%clk 0:00:20]} 28. Rc8+ {[%clk 0:01:12]}  Bf8 {[%clk 0:00:21]} 29. g4 {[%clk 0:00:54]}  g6 {[%clk 0:00:20]} 30. h4 {[%clk 0:00:52]}  Kg7 {[%clk 0:00:20]} 31. g5 {[%clk 0:00:52]}  b6 {[%clk 0:00:18]} 32. Rc7 {[%clk 0:00:50]}  Bc5 {[%clk 0:00:18]} 33. h5 {[%clk 0:00:33]}  Bxe3+ {[%clk 0:00:17]} 34. Kg2 {[%clk 0:00:32]}  gxh5 {[%clk 0:00:17]} 35. Bc4 {[%clk 0:00:29]}  Bxg5 {[%clk 0:00:17]} 36. Bxe6 {[%clk 0:00:29]}  Kg6 {[%clk 0:00:09]} 37. Bxf7+ {[%clk 0:00:28]}  Kh6 {[%clk 0:00:09]} 38. e6 {[%clk 0:00:26]}  Re3 {[%clk 0:00:08]} 39. Bg8 {[%clk 0:00:24]}  Kg6 {[%clk 0:00:07]} 40. Bxh7+ {[%clk 0:00:23]}  Kf6 {[%clk 0:00:08]} 41. Bg8 {[%clk 0:00:24]}  Bf4 {[%clk 0:00:06]} 42. Rf7+ {[%clk 0:00:22]}  Kg5 {[%clk 0:00:06]} 43. Rg7+ {[%clk 0:00:21]}  Kf5 {[%clk 0:00:06]} 44. Rf7+ {[%clk 0:00:20]}  Kg4 {[%clk 0:00:07]} 45. Rg7+ {[%clk 0:00:20]}  Bg5 {[%clk 0:00:06]} 46. e7 {[%clk 0:00:18]}  Rxe7 {[%clk 0:00:06]} 47. Rxe7 {[%clk 0:00:18]}  Bxe7 {[%clk 0:00:06]} 48. Bc4 {[%clk 0:00:17]}  a5 {[%clk 0:00:06]} 49. Bb5 {[%clk 0:00:16]}  h4 {[%clk 0:00:06]} 50. Kh2 {[%clk 0:00:16]}  Bd6+ {[%clk 0:00:07]} 51. Kg2 {[%clk 0:00:16]}  h3+ {[%clk 0:00:07]} 52. Kh1 {[%clk 0:00:16]}  Kg3 {[%clk 0:00:07]} 53. Ba4 {[%clk 0:00:15]}  Kf2 {[%clk 0:00:07]} 54. Bb5 {[%clk 0:00:15]}  Ke3 {[%clk 0:00:08]} 55. Ba4 {[%clk 0:00:15]}  Kd4 {[%clk 0:00:08]} 56. Bd7 {[%clk 0:00:15]}  Kc5 {[%clk 0:00:09]} 57. Bxh3 {[%clk 0:00:15]}  b5 {[%clk 0:00:09]} 58. Be6 {[%clk 0:00:15]}  a4 {[%clk 0:00:09]} 59. Ba2 {[%clk 0:00:14]}  b4 {[%clk 0:00:09]} 60. Kg2 {[%clk 0:00:13]}  b3 {[%clk 0:00:08]} 61. Bb1 {[%clk 0:00:13]}  a3 {[%clk 0:00:08]} 62. Kf2 {[%clk 0:00:10]}  a2 {[%clk 0:00:09]} 63. Bxa2 {[%clk 0:00:08]}  bxa2 {[%clk 0:00:10]} 64. Kf3 {[%clk 0:00:08]}  a1=Q {[%clk 0:00:11]} 65. Kg4 {[%clk 0:00:05]}  Qe5 {[%clk 0:00:11]} 0-1


[Site "https://www.chess.com"]

[Event "Titled Tuesday Blitz May 23 Early 2023"]
[White "Martinez, Shawn"]
[Black "Thiel, Thomas"]
[WhiteFideId "2039770"]
[BlackFideId "4615964"]
[WhiteElo "2174"]
[BlackElo "2229"]
[Result "0-1"]
[Round "07"]
[TimeControl "180+2"]
[Date "2023.05.23"]
[WhiteClock "0:00:00"]
[BlackClock "0:00:05"]

1. e4 {[%clk 0:02:55]}  d5 {[%clk 0:02:58]} 2. exd5 {[%clk 0:02:55]}  Nf6 {[%clk 0:02:57]} 3. d4 {[%clk 0:02:53]}  Nxd5 {[%clk 0:02:55]} 4. c4 {[%clk 0:02:52]}  Nb6 {[%clk 0:02:54]} 5. Nc3 {[%clk 0:02:51]}  e5 {[%clk 0:02:53]} 6. d5 {[%clk 0:02:43]}  Bb4 {[%clk 0:02:50]} 7. Bd3 {[%clk 0:02:39]}  c6 {[%clk 0:02:48]} 8. dxc6 {[%clk 0:02:35]}  Nxc6 {[%clk 0:02:49]} 9. Nf3 {[%clk 0:02:34]}  O-O {[%clk 0:02:37]} 10. O-O {[%clk 0:02:31]}  Bxc3 {[%clk 0:02:35]} 11. bxc3 {[%clk 0:02:29]}  Bg4 {[%clk 0:02:23]} 12. Re1 {[%clk 0:02:18]}  Re8 {[%clk 0:02:16]} 13. h3 {[%clk 0:02:07]}  Bh5 {[%clk 0:02:13]} 14. Qe2 {[%clk 0:01:58]}  Bg6 {[%clk 0:02:06]} 15. Bxg6 {[%clk 0:01:53]}  hxg6 {[%clk 0:02:05]} 16. Ba3 {[%clk 0:01:46]}  e4 {[%clk 0:01:48]} 17. Nh2 {[%clk 0:01:34]}  f5 {[%clk 0:01:44]} 18. Rad1 {[%clk 0:01:29]}  Qf6 {[%clk 0:01:40]} 19. c5 {[%clk 0:01:26]}  Nc8 {[%clk 0:01:34]} 20. Qc4+ {[%clk 0:01:23]}  Qf7 {[%clk 0:01:34]} 21. Qb5 {[%clk 0:01:21]}  a6 {[%clk 0:01:29]} 22. Qa4 {[%clk 0:01:16]}  N8a7 {[%clk 0:01:28]} 23. Rd6 {[%clk 0:01:13]}  Nb5 {[%clk 0:01:26]} 24. Red1 {[%clk 0:01:09]}  Nxc3 {[%clk 0:01:19]} 25. Qc2 {[%clk 0:01:05]}  Nxd1 {[%clk 0:01:17]} 26. Qxd1 {[%clk 0:01:06]}  Rad8 {[%clk 0:01:14]} 27. Nf1 {[%clk 0:01:01]}  Qxa2 {[%clk 0:01:09]} 28. Bc1 {[%clk 0:00:50]}  Rxd6 {[%clk 0:00:35]} 29. cxd6 {[%clk 0:00:48]}  Qe6 {[%clk 0:00:32]} 30. Bf4 {[%clk 0:00:39]}  Rd8 {[%clk 0:00:31]} 31. h4 {[%clk 0:00:33]}  Ne5 {[%clk 0:00:30]} 32. Qd4 {[%clk 0:00:31]}  Nf7 {[%clk 0:00:28]} 33. Ne3 {[%clk 0:00:28]}  Nxd6 {[%clk 0:00:27]} 34. Bg5 {[%clk 0:00:23]}  Rd7 {[%clk 0:00:23]} 35. Qc5 {[%clk 0:00:22]}  Nf7 {[%clk 0:00:22]} 36. Qc8+ {[%clk 0:00:18]}  Kh7 {[%clk 0:00:21]} 37. Bf4 {[%clk 0:00:16]}  Ne5 {[%clk 0:00:19]} 38. Qf8 {[%clk 0:00:15]}  Rf7 {[%clk 0:00:17]} 39. Qb8 {[%clk 0:00:13]}  Nd3 {[%clk 0:00:17]} 40. Bg5 {[%clk 0:00:13]}  Rd7 {[%clk 0:00:16]} 41. Qf8 {[%clk 0:00:11]}  Qf7 {[%clk 0:00:15]} 42. Qb8 {[%clk 0:00:10]}  f4 {[%clk 0:00:14]} 43. Ng4 {[%clk 0:00:08]}  f3 {[%clk 0:00:14]} 44. g3 {[%clk 0:00:05]}  Nc5 {[%clk 0:00:10]} 45. Ne3 {[%clk 0:00:04]}  Ne6 {[%clk 0:00:08]} 46. Qe5 {[%clk 0:00:00]}  Qf5 {[%clk 0:00:05]} 0-1


[Site "https://www.chess.com"]